[Event "Titled Tuesday Blitz July 4 Early 2023"]
[White "Labussiere, Yago"]
[Black "Arencibia Monduy, Antonio"]
[WhiteFideId "2186969"]
[BlackFideId "3507939"]
[WhiteElo "2361"]
[BlackElo "2525"]
[Result "1-0"]
[Round "4"]
[TimeControl "180+2"]
[Date "2023.07.04"]
[WhiteClock "0:00:18"]
[BlackClock "0:00:00"]
[Board "161"]

1. d4 {[%clk 0:03:00]}  Nf6 {[%clk 0:02:58]} 2. c4 {[%clk 0:03:01]}  e6 {[%clk 0:02:59]} 3. Nf3 {[%clk 0:03:01]}  d6 {[%clk 0:02:57]} 4. Nc3 {[%clk 0:03:01]}  Be7 {[%clk 0:02:56]} 5. e4 {[%clk 0:03:01]}  O-O {[%clk 0:02:52]} 6. h3 {[%clk 0:03:00]}  c6 {[%clk 0:02:51]} 7. Bd3 {[%clk 0:02:57]}  Qc7 {[%clk 0:02:51]} 8. O-O {[%clk 0:02:57]}  e5 {[%clk 0:02:52]} 9. Re1 {[%clk 0:02:54]}  Re8 {[%clk 0:02:51]} 10. d5 {[%clk 0:02:54]}  a6 {[%clk 0:02:49]} 11. Be3 {[%clk 0:02:51]}  c5 {[%clk 0:02:49]} 12. Nh4 {[%clk 0:02:40]}  g6 {[%clk 0:02:15]} 13. Bg5 {[%clk 0:02:33]}  Nh5 {[%clk 0:02:07]} 14. Nf3 {[%clk 0:02:17]}  f6 {[%clk 0:02:06]} 15. Be3 {[%clk 0:02:15]}  Rf8 {[%clk 0:02:01]} 16. Ne2 {[%clk 0:02:07]}  f5 {[%clk 0:01:46]} 17. Qc2 {[%clk 0:02:07]}  f4 {[%clk 0:01:45]} 18. Bc1 {[%clk 0:02:06]}  Bd7 {[%clk 0:01:44]} 19. Nh2 {[%clk 0:02:04]}  b5 {[%clk 0:01:38]} 20. Bd2 {[%clk 0:02:00]}  Ra7 {[%clk 0:01:32]} 21. b4 {[%clk 0:01:58]}  cxb4 {[%clk 0:01:27]} 22. Bxb4 {[%clk 0:01:56]}  a5 {[%clk 0:01:26]} 23. Bd2 {[%clk 0:01:56]}  b4 {[%clk 0:01:09]} 24. a3 {[%clk 0:01:55]}  Na6 {[%clk 0:01:07]} 25. Reb1 {[%clk 0:01:52]}  bxa3 {[%clk 0:01:00]} 26. Rxa3 {[%clk 0:01:52]}  Nc5 {[%clk 0:01:01]} 27. Nc3 {[%clk 0:01:49]}  f3 {[%clk 0:00:50]} 28. Nxf3 {[%clk 0:01:43]}  Rxf3 {[%clk 0:00:49]} 29. gxf3 {[%clk 0:01:42]}  Qc8 {[%clk 0:00:40]} 30. Nb5 {[%clk 0:01:39]}  Ra8 {[%clk 0:00:40]} 31. Rxa5 {[%clk 0:01:36]}  Rxa5 {[%clk 0:00:40]} 32. Bxa5 {[%clk 0:01:37]}  Bxh3 {[%clk 0:00:40]} 33. Bd2 {[%clk 0:01:28]}  Qf8 {[%clk 0:00:32]} 34. Be2 {[%clk 0:01:16]}  Nf4 {[%clk 0:00:30]} 35. Bf1 {[%clk 0:01:00]}  Bd7 {[%clk 0:00:18]} 36. Bxf4 {[%clk 0:00:39]}  Qxf4 {[%clk 0:00:18]} 37. Nc3 {[%clk 0:00:40]}  Qg5+ {[%clk 0:00:13]} 38. Kh1 {[%clk 0:00:34]}  Qh4+ {[%clk 0:00:13]} 39. Kg1 {[%clk 0:00:34]}  Bg5 {[%clk 0:00:09]} 40. Ne2 {[%clk 0:00:32]}  Bf4 {[%clk 0:00:02]} 41. Nxf4 {[%clk 0:00:30]}  Qxf4 {[%clk 0:00:02]} 42. Bg2 {[%clk 0:00:30]}  h5 {[%clk 0:00:02]} 43. Qc1 {[%clk 0:00:25]}  Qf8 {[%clk 0:00:01]} 44. Qg5 {[%clk 0:00:25]}  Kh7 {[%clk 0:00:01]} 45. Re1 {[%clk 0:00:20]}  Qf7 {[%clk 0:00:01]} 46. Re3 {[%clk 0:00:18]}  Qg7 {[%clk 0:00:00]} 47. f4 {[%clk 0:00:18]} 1-0


[Site "https://www.chess.com"]

[Event "Titled Tuesday Blitz July 4 Early 2023"]
[White "Sovetbekova, Nurai"]
[Black "Kuzmin, Roman"]
[WhiteFideId "13801910"]
[BlackFideId "44134932"]
[WhiteElo "2355"]
[BlackElo "2523"]
[Result "0-1"]
[Round "4"]
[TimeControl "180+2"]
[Date "2023.07.04"]
[WhiteClock "0:00:00"]
[BlackClock "0:00:01"]
[Board "163"]

1. d4 {[%clk 0:03:00]}  Nf6 {[%clk 0:02:59]} 2. c4 {[%clk 0:03:00]}  e6 {[%clk 0:03:00]} 3. Nc3 {[%clk 0:03:00]}  d5 {[%clk 0:03:01]} 4. Nf3 {[%clk 0:03:00]}  c6 {[%clk 0:03:01]} 5. Bf4 {[%clk 0:03:00]}  Nbd7 {[%clk 0:03:01]} 6. e3 {[%clk 0:03:00]}  Be7 {[%clk 0:03:02]} 7. Be2 {[%clk 0:03:00]}  O-O {[%clk 0:03:02]} 8. O-O {[%clk 0:03:00]}  dxc4 {[%clk 0:03:03]} 9. Bxc4 {[%clk 0:03:00]}  b5 {[%clk 0:03:04]} 10. Bd3 {[%clk 0:03:00]}  a6 {[%clk 0:03:04]} 11. Rc1 {[%clk 0:02:59]}  c5 {[%clk 0:03:04]} 12. Ne4 {[%clk 0:02:56]}  c4 {[%clk 0:02:56]} 13. Bb1 {[%clk 0:02:53]}  Bb7 {[%clk 0:02:55]} 14. Nfd2 {[%clk 0:02:40]}  Nb6 {[%clk 0:02:44]} 15. Qf3 {[%clk 0:02:31]}  Nbd5 {[%clk 0:02:42]} 16. Bg5 {[%clk 0:02:29]}  Nxe4 {[%clk 0:02:35]} 17. Bxe7 {[%clk 0:02:24]}  Nxe7 {[%clk 0:02:12]} 18. Nxe4 {[%clk 0:02:13]}  Bxe4 {[%clk 0:01:27]} 19. Qxe4 {[%clk 0:01:55]}  g6 {[%clk 0:01:27]} 20. b3 {[%clk 0:01:54]}  Qd5 {[%clk 0:01:21]} 21. bxc4 {[%clk 0:01:52]}  bxc4 {[%clk 0:01:21]} 22. Qh4 {[%clk 0:01:36]}  Ra7 {[%clk 0:01:21]} 23. Rc3 {[%clk 0:01:29]}  Rc8 {[%clk 0:01:18]} 24. Rfc1 {[%clk 0:01:28]}  Qb5 {[%clk 0:01:18]} 25. e4 {[%clk 0:00:51]}  Qb2 {[%clk 0:01:13]} 26. Qf6 {[%clk 0:00:45]}  Rb7 {[%clk 0:00:56]} 27. h3 {[%clk 0:00:38]}  Qd2 {[%clk 0:00:49]} 28. Bd3 {[%clk 0:00:28]}  Qxa2 {[%clk 0:00:20]} 29. Bxc4 {[%clk 0:00:21]}  Qb2 {[%clk 0:00:18]} 30. d5 {[%clk 0:00:06]}  exd5 {[%clk 0:00:15]} 31. exd5 {[%clk 0:00:06]}  Nf5 {[%clk 0:00:08]} 32. d6 {[%clk 0:00:04]}  Rf8 {[%clk 0:00:07]} 33. Bd3 {[%clk 0:00:02]}  Nh6 {[%clk 0:00:02]} 34. Rc8 {[%clk 0:00:00]}  Qxf6 {[%clk 0:00:01]} 0-1


[Site "https://www.chess.com"]

[Event "Titled Tuesday Blitz July 4 Early 2023"]
[White "feuervogel1000000"]
[Black "Nithyalakshmi, Sivanesan"]
[BlackFideId "5706955"]
[WhiteElo "2514"]
[BlackElo "2352"]
[Result "1-0"]
[Round "4"]
[TimeControl "180+2"]
[Date "2023.07.04"]
[WhiteClock "0:00:46"]
[BlackClock "0:01:03"]
[Board "164"]

1. d4 {[%clk 0:01:13]}  Nf6 {[%clk 0:02:57]} 2. c4 {[%clk 0:01:13]}  c5 {[%clk 0:02:57]} 3. d5 {[%clk 0:01:13]}  b5 {[%clk 0:02:56]} 4. cxb5 {[%clk 0:01:14]}  g6 {[%clk 0:02:40]} 5. Nc3 {[%clk 0:01:14]}  a6 {[%clk 0:02:28]} 6. e4 {[%clk 0:01:13]}  d6 {[%clk 0:02:13]} 7. bxa6 {[%clk 0:01:13]}  Bg7 {[%clk 0:02:02]} 8. Nf3 {[%clk 0:01:12]}  Qa5 {[%clk 0:02:00]} 9. Bd2 {[%clk 0:01:12]}  Bxa6 {[%clk 0:01:58]} 10. Bxa6 {[%clk 0:01:10]}  Qxa6 {[%clk 0:01:57]} 11. Qe2 {[%clk 0:01:08]}  O-O {[%clk 0:01:56]} 12. Qxa6 {[%clk 0:01:07]}  Rxa6 {[%clk 0:01:54]} 13. Ke2 {[%clk 0:01:07]}  Nbd7 {[%clk 0:01:52]} 14. a4 {[%clk 0:00:59]}  Rb8 {[%clk 0:01:51]} 15. Rhb1 {[%clk 0:00:59]}  Ng4 {[%clk 0:01:49]} 16. h3 {[%clk 0:00:58]}  Nge5 {[%clk 0:01:49]} 17. Nxe5 {[%clk 0:00:59]}  Nxe5 {[%clk 0:01:48]} 18. b3 {[%clk 0:00:59]}  Nd7 {[%clk 0:01:37]} 19. Ra2 {[%clk 0:00:59]}  Nb6 {[%clk 0:01:35]} 20. a5 {[%clk 0:00:53]}  Nd7 {[%clk 0:01:33]} 21. Na4 {[%clk 0:00:53]}  c4 {[%clk 0:01:28]} 22. b4 {[%clk 0:00:54]}  Ne5 {[%clk 0:01:25]} 23. Nc3 {[%clk 0:00:50]}  Nd3 {[%clk 0:01:22]} 24. b5 {[%clk 0:00:50]}  Bxc3 {[%clk 0:01:20]} 25. bxa6 {[%clk 0:00:48]}  Rb2 {[%clk 0:01:13]} 26. Raxb2 {[%clk 0:00:46]}  Bxb2 {[%clk 0:01:09]} 27. a7 {[%clk 0:00:46]}  c3 {[%clk 0:01:08]} 28. a8=Q+ {[%clk 0:00:45]}  Kg7 {[%clk 0:01:07]} 29. Kxd3 {[%clk 0:00:46]}  cxd2 {[%clk 0:01:03]} 30. Kxd2 {[%clk 0:00:46]} 1-0


[Site "https://www.chess.com"]

[Event "Titled Tuesday Blitz July 4 Early 2023"]
[White "Rangel, Daniel"]
[Black "Korpics, Zsolt"]
[WhiteFideId "2124475"]
[BlackFideId "705241"]
[WhiteElo "2511"]
[BlackElo "2348"]
[Result "1-0"]
[Round "4"]
[TimeControl "180+2"]
[Date "2023.07.04"]
[WhiteClock "0:01:05"]
[BlackClock "0:00:08"]
[Board "166"]

1. c4 {[%clk 0:03:00]}  Nf6 {[%clk 0:02:58]} 2. g3 {[%clk 0:03:00]}  e6 {[%clk 0:02:57]} 3. Bg2 {[%clk 0:03:01]}  d5 {[%clk 0:02:58]} 4. Nf3 {[%clk 0:03:02]}  Be7 {[%clk 0:02:59]} 5. O-O {[%clk 0:03:03]}  O-O {[%clk 0:02:59]} 6. b3 {[%clk 0:03:03]}  b6 {[%clk 0:02:52]} 7. Ba3 {[%clk 0:03:03]}  Bxa3 {[%clk 0:02:48]} 8. Nxa3 {[%clk 0:03:04]}  Bb7 {[%clk 0:02:45]} 9. Nc2 {[%clk 0:03:05]}  dxc4 {[%clk 0:02:42]} 10. bxc4 {[%clk 0:03:04]}  c5 {[%clk 0:02:43]} 11. d3 {[%clk 0:03:04]}  Nc6 {[%clk 0:02:34]} 12. Ne5 {[%clk 0:03:03]}  Qc7 {[%clk 0:02:24]} 13. Nxc6 {[%clk 0:02:49]}  Bxc6 {[%clk 0:02:24]} 14. Bxc6 {[%clk 0:02:50]}  Qxc6 {[%clk 0:02:25]} 15. a4 {[%clk 0:02:50]}  e5 {[%clk 0:02:16]} 16. e4 {[%clk 0:02:48]}  Rfd8 {[%clk 0:02:13]} 17. Qe2 {[%clk 0:02:48]}  Qd6 {[%clk 0:02:05]} 18. Rfd1 {[%clk 0:02:47]}  Nd7 {[%clk 0:01:54]} 19. a5 {[%clk 0:02:42]}  Nf8 {[%clk 0:01:33]} 20. Ne3 {[%clk 0:02:41]}  Ne6 {[%clk 0:01:33]} 21. Nf5 {[%clk 0:02:35]}  Qd7 {[%clk 0:01:29]} 22. Qg4 {[%clk 0:02:31]}  g6 {[%clk 0:01:21]} 23. Ne3 {[%clk 0:02:28]}  Nd4 {[%clk 0:01:18]} 24. Qxd7 {[%clk 0:02:27]}  Rxd7 {[%clk 0:01:19]} 25. axb6 {[%clk 0:02:28]}  Ne2+ {[%clk 0:01:08]} 26. Kg2 {[%clk 0:02:13]}  Nc3 {[%clk 0:01:08]} 27. Rd2 {[%clk 0:02:12]}  Nxe4 {[%clk 0:01:07]} 28. Rda2 {[%clk 0:02:08]}  Rxd3 {[%clk 0:01:03]} 29. Rxa7 {[%clk 0:02:07]}  Rb8 {[%clk 0:01:02]} 30. Ra8 {[%clk 0:01:58]}  Rdd8 {[%clk 0:01:01]} 31. b7 {[%clk 0:01:49]}  Kg7 {[%clk 0:01:00]} 32. R1a6 {[%clk 0:01:16]}  Rf8 {[%clk 0:00:45]} 33. Rxb8 {[%clk 0:01:12]}  Rxb8 {[%clk 0:00:44]} 34. Rb6 {[%clk 0:01:13]}  Kf8 {[%clk 0:00:18]} 35. Nd5 {[%clk 0:01:09]}  Ke8 {[%clk 0:00:18]} 36. Nc7+ {[%clk 0:01:09]}  Kd8 {[%clk 0:00:18]} 37. Na6 {[%clk 0:01:09]}  Nd6 {[%clk 0:00:08]} 38. Rxd6+ {[%clk 0:01:06]}  Ke7 {[%clk 0:00:07]} 39. Nxb8 {[%clk 0:01:06]}  Kxd6 {[%clk 0:00:08]} 40. Na6 {[%clk 0:01:05]} 1-0


[Site "https://www.chess.com"]

[Event "Titled Tuesday Blitz July 4 Early 2023"]
[White "Toolin, Christopher"]
[Black "Kirillov, Dmitry"]
[WhiteFideId "2024543"]
[BlackFideId "34180572"]
[WhiteElo "2338"]
[BlackElo "2509"]
[Result "0-1"]
[Round "4"]
[TimeControl "180+2"]
[Date "2023.07.04"]
[WhiteClock "0:00:02"]
[BlackClock "0:00:21"]
[Board "168"]

1. d4 {[%clk 0:03:00]}  Nf6 {[%clk 0:02:57]} 2. c4 {[%clk 0:03:00]}  e6 {[%clk 0:02:57]} 3. Nf3 {[%clk 0:03:00]}  b6 {[%clk 0:02:57]} 4. a3 {[%clk 0:03:00]}  Bb7 {[%clk 0:02:57]} 5. Nc3 {[%clk 0:03:01]}  d5 {[%clk 0:02:57]} 6. Qc2 {[%clk 0:03:01]}  Be7 {[%clk 0:02:54]} 7. cxd5 {[%clk 0:03:01]}  Nxd5 {[%clk 0:02:54]} 8. e4 {[%clk 0:03:02]}  Nxc3 {[%clk 0:02:55]} 9. bxc3 {[%clk 0:03:03]}  O-O {[%clk 0:02:55]} 10. Bd3 {[%clk 0:03:03]}  c5 {[%clk 0:02:56]} 11. O-O {[%clk 0:03:03]}  Qc7 {[%clk 0:02:57]} 12. Qe2 {[%clk 0:03:01]}  Nd7 {[%clk 0:02:57]} 13. Bb2 {[%clk 0:02:59]}  Rfd8 {[%clk 0:02:56]} 14. Rfd1 {[%clk 0:02:59]}  Rac8 {[%clk 0:02:57]} 15. a4 {[%clk 0:02:57]}  a6 {[%clk 0:02:38]} 16. Bxa6 {[%clk 0:02:53]}  Bxa6 {[%clk 0:02:38]} 17. Qxa6 {[%clk 0:02:54]}  c4 {[%clk 0:02:36]} 18. Ba3 {[%clk 0:02:42]}  Bxa3 {[%clk 0:02:05]} 19. Rxa3 {[%clk 0:02:41]}  Nc5 {[%clk 0:01:55]} 20. Qb5 {[%clk 0:02:41]}  Nxe4 {[%clk 0:01:53]} 21. Rb1 {[%clk 0:02:31]}  Rb8 {[%clk 0:01:47]} 22. Ne5 {[%clk 0:02:31]}  Rdc8 {[%clk 0:01:33]} 23. f3 {[%clk 0:02:21]}  Nd6 {[%clk 0:01:29]} 24. Qb2 {[%clk 0:01:59]}  b5 {[%clk 0:01:20]} 25. a5 {[%clk 0:01:51]}  b4 {[%clk 0:00:58]} 26. cxb4 {[%clk 0:01:52]}  Nb5 {[%clk 0:00:58]} 27. Raa1 {[%clk 0:01:46]}  c3 {[%clk 0:00:58]} 28. Qf2 {[%clk 0:01:46]}  c2 {[%clk 0:00:50]} 29. Rc1 {[%clk 0:01:47]}  Qc3 {[%clk 0:00:48]} 30. Ra2 {[%clk 0:01:24]}  Nxd4 {[%clk 0:00:45]} 31. a6 {[%clk 0:01:18]}  Rxb4 {[%clk 0:00:42]} 32. a7 {[%clk 0:01:13]}  Rb1 {[%clk 0:00:40]} 33. Qf1 {[%clk 0:00:14]}  Rxc1 {[%clk 0:00:34]} 34. Qxc1 {[%clk 0:00:14]}  Ne2+ {[%clk 0:00:32]} 35. Kf2 {[%clk 0:00:15]}  Nxc1 {[%clk 0:00:32]} 36. a8=Q {[%clk 0:00:15]}  Qd4+ {[%clk 0:00:30]} 37. Kf1 {[%clk 0:00:13]}  Qd1+ {[%clk 0:00:28]} 38. Kf2 {[%clk 0:00:13]}  Qe2+ {[%clk 0:00:28]} 39. Kg3 {[%clk 0:00:13]}  Qxe5+ {[%clk 0:00:27]} 40. f4 {[%clk 0:00:14]}  Qe3+ {[%clk 0:00:27]} 41. Kg4 {[%clk 0:00:14]}  f5+ {[%clk 0:00:25]} 42. Kh5 {[%clk 0:00:11]}  Qe2+ {[%clk 0:00:21]} 43. Kg5 {[%clk 0:00:02]}  Qg4# {[%clk 0:00:21]} 0-1


[Site "https://www.chess.com"]

[Event "Titled Tuesday Blitz July 4 Early 2023"]
[White "Chyngyz, Sultai"]
[Black "Tifferet, Shaked"]
[WhiteFideId "13803158"]
[BlackFideId "2811529"]
[WhiteElo "2334"]
[BlackElo "2506"]
[Result "1-0"]
[Round "4"]
[TimeControl "180+2"]
[Date "2023.07.04"]
[WhiteClock "0:01:17"]
[BlackClock "0:00:11"]
[Board "170"]

1. e4 {[%clk 0:03:00]}  c5 {[%clk 0:02:59]} 2. Nf3 {[%clk 0:03:00]}  a6 {[%clk 0:03:00]} 3. d4 {[%clk 0:02:59]}  cxd4 {[%clk 0:03:01]} 4. Nxd4 {[%clk 0:03:00]}  Nf6 {[%clk 0:03:01]} 5. Nc3 {[%clk 0:02:59]}  e5 {[%clk 0:03:02]} 6. Nf3 {[%clk 0:03:00]}  Bc5 {[%clk 0:03:02]} 7. Bc4 {[%clk 0:02:59]}  d6 {[%clk 0:03:01]} 8. O-O {[%clk 0:02:59]}  O-O {[%clk 0:03:01]} 9. Bg5 {[%clk 0:03:00]}  Be6 {[%clk 0:02:56]} 10. Bd5 {[%clk 0:02:54]}  Bxd5 {[%clk 0:02:53]} 11. Nxd5 {[%clk 0:02:53]}  Nbd7 {[%clk 0:02:54]} 12. h3 {[%clk 0:02:46]}  h6 {[%clk 0:02:51]} 13. Bh4 {[%clk 0:02:46]}  Rc8 {[%clk 0:02:50]} 14. c4 {[%clk 0:02:42]}  g5 {[%clk 0:02:50]} 15. Nxg5 {[%clk 0:02:41]}  Nxd5 {[%clk 0:02:41]} 16. Qg4 {[%clk 0:02:21]}  N5f6 {[%clk 0:02:25]} 17. Qf5 {[%clk 0:02:16]}  Kg7 {[%clk 0:01:53]} 18. Rad1 {[%clk 0:02:12]}  Rh8 {[%clk 0:01:52]} 19. Nf3 {[%clk 0:02:04]}  Qe8 {[%clk 0:01:51]} 20. Bxf6+ {[%clk 0:01:51]}  Nxf6 {[%clk 0:01:51]} 21. Nh4 {[%clk 0:01:52]}  Qc6 {[%clk 0:01:30]} 22. Rd3 {[%clk 0:01:51]}  Nxe4 {[%clk 0:01:21]} 23. Rf3 {[%clk 0:01:37]}  Rc7 {[%clk 0:01:09]} 24. Qg4+ {[%clk 0:01:34]}  Kf8 {[%clk 0:01:04]} 25. Ng6+ {[%clk 0:01:32]}  Kg7 {[%clk 0:01:00]} 26. Nxe5+ {[%clk 0:01:32]}  Kf8 {[%clk 0:00:54]} 27. Nxc6 {[%clk 0:01:32]}  Nd2 {[%clk 0:00:48]} 28. Rg3 {[%clk 0:01:24]}  bxc6 {[%clk 0:00:34]} 29. Qg7+ {[%clk 0:01:23]}  Ke7 {[%clk 0:00:33]} 30. Re1+ {[%clk 0:01:23]}  Kd7 {[%clk 0:00:31]} 31. Qxf7+ {[%clk 0:01:23]}  Kc8 {[%clk 0:00:31]} 32. Re7 {[%clk 0:01:19]}  Rxe7 {[%clk 0:00:20]} 33. Qxe7 {[%clk 0:01:20]}  d5 {[%clk 0:00:11]} 34. Qxc5 {[%clk 0:01:17]} 1-0


[Site "https://www.chess.com"]

[Event "Titled Tuesday Blitz July 4 Early 2023"]
[White "Pham, Le Thao Nguyen"]
[Black "Juknis, Paulius"]
[WhiteFideId "12401226"]
[BlackFideId "12802247"]
[WhiteElo "2496"]
[BlackElo "2319"]
[Result "0-1"]
[Round "4"]
[TimeControl "180+2"]
[Date "2023.07.04"]
[WhiteClock "0:00:07"]
[BlackClock "0:00:19"]
[Board "173"]

1. d4 {[%clk 0:02:47]}  Nf6 {[%clk 0:02:59]} 2. Nf3 {[%clk 0:02:47]}  g6 {[%clk 0:03:00]} 3. Bf4 {[%clk 0:02:42]}  Bg7 {[%clk 0:02:57]} 4. e3 {[%clk 0:02:42]}  d6 {[%clk 0:02:55]} 5. Be2 {[%clk 0:02:42]}  c5 {[%clk 0:02:48]} 6. c3 {[%clk 0:02:41]}  Nh5 {[%clk 0:02:26]} 7. Bg5 {[%clk 0:02:16]}  h6 {[%clk 0:02:26]} 8. Bh4 {[%clk 0:02:16]}  cxd4 {[%clk 0:02:23]} 9. Nxd4 {[%clk 0:01:53]}  Nf6 {[%clk 0:02:20]} 10. O-O {[%clk 0:01:53]}  Nc6 {[%clk 0:02:08]} 11. Nd2 {[%clk 0:01:53]}  O-O {[%clk 0:02:06]} 12. a4 {[%clk 0:01:43]}  e5 {[%clk 0:01:41]} 13. Nxc6 {[%clk 0:01:27]}  bxc6 {[%clk 0:01:41]} 14. Nc4 {[%clk 0:01:27]}  g5 {[%clk 0:01:42]} 15. Bg3 {[%clk 0:01:25]}  Ne4 {[%clk 0:01:42]} 16. Qc2 {[%clk 0:00:43]}  f5 {[%clk 0:01:36]} 17. f3 {[%clk 0:00:40]}  Nxg3 {[%clk 0:01:36]} 18. hxg3 {[%clk 0:00:41]}  d5 {[%clk 0:01:37]} 19. Na3 {[%clk 0:00:36]}  Qb6 {[%clk 0:01:35]} 20. Qd2 {[%clk 0:00:36]}  a5 {[%clk 0:01:28]} 21. Rfb1 {[%clk 0:00:35]}  f4 {[%clk 0:01:21]} 22. gxf4 {[%clk 0:00:34]}  gxf4 {[%clk 0:01:21]} 23. Nc2 {[%clk 0:00:34]}  Bf5 {[%clk 0:01:16]} 24. Bd3 {[%clk 0:00:24]}  e4 {[%clk 0:00:48]} 25. fxe4 {[%clk 0:00:23]}  Bxe4 {[%clk 0:00:48]} 26. Nd4 {[%clk 0:00:16]}  c5 {[%clk 0:00:45]} 27. Nb5 {[%clk 0:00:13]}  fxe3 {[%clk 0:00:24]} 28. Qxe3 {[%clk 0:00:14]}  Bxd3 {[%clk 0:00:24]} 29. Qxd3 {[%clk 0:00:14]}  c4+ {[%clk 0:00:24]} 30. Qd4 {[%clk 0:00:11]}  Bxd4+ {[%clk 0:00:24]} 31. Nxd4 {[%clk 0:00:12]}  Rf4 {[%clk 0:00:19]} 32. Rd1 {[%clk 0:00:07]}  Qxb2 {[%clk 0:00:19]} 0-1


[Site "https://www.chess.com"]

[Event "Titled Tuesday Blitz July 4 Early 2023"]
[White "Castillo Sevilla, Ian Eiffel"]
[Black "Shubenkova, Veronika"]
[WhiteFideId "6104207"]
[BlackFideId "44124040"]
[WhiteElo "2308"]
[BlackElo "2491"]
[Result "0-1"]
[Round "4"]
[TimeControl "180+2"]
[Date "2023.07.04"]
[WhiteClock "0:00:08"]
[BlackClock "0:00:32"]
[Board "175"]

1. d4 {[%clk 0:03:00]}  d5 {[%clk 0:02:57]} 2. Bf4 {[%clk 0:03:01]}  e6 {[%clk 0:02:57]} 3. e3 {[%clk 0:03:02]}  Bd6 {[%clk 0:02:57]} 4. Bxd6 {[%clk 0:03:02]}  Qxd6 {[%clk 0:02:57]} 5. Qg4 {[%clk 0:03:03]}  g6 {[%clk 0:02:51]} 6. Nc3 {[%clk 0:03:02]}  c6 {[%clk 0:02:48]} 7. O-O-O {[%clk 0:03:01]}  f5 {[%clk 0:02:48]} 8. Qg3 {[%clk 0:03:00]}  Qxg3 {[%clk 0:02:45]} 9. hxg3 {[%clk 0:03:01]}  Nf6 {[%clk 0:02:45]} 10. Nf3 {[%clk 0:02:51]}  Nbd7 {[%clk 0:02:43]} 11. Be2 {[%clk 0:02:41]}  Ke7 {[%clk 0:02:39]} 12. Nh2 {[%clk 0:02:38]}  e5 {[%clk 0:02:39]} 13. g4 {[%clk 0:02:37]}  e4 {[%clk 0:02:33]} 14. gxf5 {[%clk 0:02:35]}  gxf5 {[%clk 0:02:33]} 15. g4 {[%clk 0:02:36]}  fxg4 {[%clk 0:02:31]} 16. Nxg4 {[%clk 0:02:37]}  Nxg4 {[%clk 0:02:31]} 17. Bxg4 {[%clk 0:02:37]}  Nf6 {[%clk 0:02:32]} 18. Be2 {[%clk 0:02:26]}  h5 {[%clk 0:02:27]} 19. Rh4 {[%clk 0:02:26]}  Kf7 {[%clk 0:02:21]} 20. Rdh1 {[%clk 0:02:24]}  Kg6 {[%clk 0:02:17]} 21. f3 {[%clk 0:02:07]}  exf3 {[%clk 0:02:14]} 22. Bxf3 {[%clk 0:02:08]}  Bg4 {[%clk 0:02:13]} 23. Bxg4 {[%clk 0:01:57]}  Nxg4 {[%clk 0:02:12]} 24. e4 {[%clk 0:01:55]}  dxe4 {[%clk 0:02:08]} 25. Nxe4 {[%clk 0:01:54]}  Rh7 {[%clk 0:01:59]} 26. Ng3 {[%clk 0:01:50]}  Nf6 {[%clk 0:01:56]} 27. Rg1 {[%clk 0:01:36]}  Kg5 {[%clk 0:01:44]} 28. Rgh1 {[%clk 0:01:02]}  Re8 {[%clk 0:01:34]} 29. Kd2 {[%clk 0:00:59]}  b6 {[%clk 0:01:29]} 30. c3 {[%clk 0:00:58]}  c5 {[%clk 0:01:29]} 31. dxc5 {[%clk 0:00:55]}  bxc5 {[%clk 0:01:30]} 32. b3 {[%clk 0:00:52]}  Rd8+ {[%clk 0:01:29]} 33. Kc2 {[%clk 0:00:51]}  Re8 {[%clk 0:01:29]} 34. b4 {[%clk 0:00:35]}  Re3 {[%clk 0:01:24]} 35. Nf1 {[%clk 0:00:20]}  Re2+ {[%clk 0:01:23]} 36. Kd3 {[%clk 0:00:20]}  Rxa2 {[%clk 0:01:23]} 37. bxc5 {[%clk 0:00:19]}  Rd7+ {[%clk 0:01:20]} 38. Rd4 {[%clk 0:00:18]}  Re7 {[%clk 0:01:15]} 39. Ne3 {[%clk 0:00:17]}  Rf2 {[%clk 0:01:12]} 40. Rg1+ {[%clk 0:00:16]}  Kh6 {[%clk 0:01:08]} 41. Rd6 {[%clk 0:00:16]}  Rf3 {[%clk 0:00:59]} 42. Re1 {[%clk 0:00:17]}  Kh7 {[%clk 0:00:57]} 43. Kd4 {[%clk 0:00:17]}  Re4+ {[%clk 0:00:52]} 44. Kd3 {[%clk 0:00:15]}  Re7 {[%clk 0:00:52]} 45. Kd4 {[%clk 0:00:15]}  Rf4+ {[%clk 0:00:47]} 46. Kd3 {[%clk 0:00:14]}  h4 {[%clk 0:00:47]} 47. c6 {[%clk 0:00:13]}  h3 {[%clk 0:00:43]} 48. Rh1 {[%clk 0:00:06]}  Rf3 {[%clk 0:00:43]} 49. Re1 {[%clk 0:00:07]}  Ng4 {[%clk 0:00:42]} 50. Rd7 {[%clk 0:00:05]}  Ne5+ {[%clk 0:00:39]} 51. Ke4 {[%clk 0:00:05]}  Rxe3+ {[%clk 0:00:33]} 52. Rxe3 {[%clk 0:00:03]}  Nxd7+ {[%clk 0:00:33]} 53. Kf3 {[%clk 0:00:03]}  Rxe3+ {[%clk 0:00:33]} 54. Kxe3 {[%clk 0:00:03]}  Nb6 {[%clk 0:00:34]} 55. Kf3 {[%clk 0:00:03]}  Kg6 {[%clk 0:00:33]} 56. Kg3 {[%clk 0:00:03]}  Kf6 {[%clk 0:00:33]} 57. Kxh3 {[%clk 0:00:04]}  Ke6 {[%clk 0:00:34]} 58. Kg4 {[%clk 0:00:04]}  Kd6 {[%clk 0:00:34]} 59. Kf4 {[%clk 0:00:05]}  Kxc6 {[%clk 0:00:34]} 60. Ke3 {[%clk 0:00:06]}  Kc5 {[%clk 0:00:35]} 61. Kd3 {[%clk 0:00:07]}  a5 {[%clk 0:00:35]} 62. Kc2 {[%clk 0:00:08]}  Kc4 {[%clk 0:00:34]} 63. Kb2 {[%clk 0:00:09]}  Nd5 {[%clk 0:00:32]} 64. Kc2 {[%clk 0:00:08]}  Nxc3 {[%clk 0:00:32]} 0-1


[Site "https://www.chess.com"]